fUSD/lending_fUSD_20240611
["ID","MTS","AMOUNT","RATE_DAILY","PERIOD"]
[329060419,1718075450492,-500.0,0.00029863,2]
[329060421,1718075450519,-517.33883928,0.00029863,4]
[329060424,1718075450573,-500.0,0.00029863,2]
[329060426,1718075450598,-500.0,0.00029863,2]
[329060428,1718075450609,-500.0,0.00029863,4]
[329060430,1718075450625,-500.0,0.00029863,2]
[329060432,1718075450644,-500.0,0.00029863,4]
[329060433,1718075450664,-500.0,0.00029863,4]
[329060434,1718075450682,-500.0,0.00029863,4]
[329060435,1718075450694,-500.0,0.00029863,4]
[329060436,1718075450710,-500.0,0.00029863,2]
[329060437,1718075450722,-500.0,0.00029863,4]
[329060438,1718075450738,-511.79581901,0.00029863,4]
[329060439,1718075450749,-500.0,0.00029863,4]
[329060440,1718075450761,-500.0,0.00029863,2]
[329060441,1718075450780,-500.0,0.00029863,4]
[329060442,1718075450796,-500.0,0.00029863,4]
[329060443,1718075450809,-500.0,0.00029863,2]
[329060444,1718075450823,-500.0,0.00029863,4]
[329060445,1718075450835,-500.0,0.00029863,2]
[329060446,1718075450849,-500.0,0.00029863,4]
[329060447,1718075450860,-500.0,0.00029863,4]
[329060448,1718075450880,-534.45475224,0.00029863,4]
[329060449,1718075450892,-500.0,0.00029863,2]
[329060450,1718075450906,-500.0,0.00029863,4]
[329060451,1718075450921,-500.0,0.00029863,4]
[329060452,1718075450933,-500.0,0.00029863,2]
[329060453,1718075450946,-500.0,0.00029863,4]
[329060454,1718075450958,-500.0,0.00029863,4]
[329060455,1718075450969,-500.0,0.00029863,2]
[329060456,1718075450982,-500.0,0.00029863,4]
[329060457,1718075450993,-527.4905992,0.00029863,4]
[329060458,1718075451004,-500.0,0.00029863,4]
[329060459,1718075451016,-500.0,0.00029863,4]
[329060460,1718075451030,-500.0,0.00029863,4]
[329060461,1718075451047,-500.0,0.00029863,2]
[329060462,1718075451058,-500.0,0.00029863,4]
[329060463,1718075451070,-500.0,0.00029863,4]
[329060464,1718075451082,-500.0,0.00029863,4]
[329060465,1718075451095,-500.0,0.00029863,4]
[329060466,1718075451109,-500.0,0.00029863,2]
[329060467,1718075451121,-500.0,0.00029863,4]
[329060468,1718075451132,-500.0,0.00029863,4]
[329060469,1718075451143,-500.0,0.00029863,4]
[329060470,1718075451154,-532.19251101,0.00029863,4]
[329060471,1718075451165,-500.0,0.00029863,4]
[329060472,1718075451176,-500.0,0.00029863,4]
[329060473,1718075451189,-500.0,0.00029863,4]
[329060474,1718075451200,-500.0,0.00029863,4]
[329060475,1718075451211,-500.0,0.00029863,4]
[329060476,1718075451222,-500.0,0.00029863,4]
[329060477,1718075451232,-500.0,0.00029863,4]
[329060478,1718075451244,-500.0,0.00029863,4]
[329060479,1718075451254,-500.0,0.00029863,2]
[329060480,1718075451265,-349.38207323,0.00029863,4]
[329060481,1718075451276,-500.0,0.00029863,4]
[329060482,1718075451288,-500.0,0.00029863,4]
[329060483,1718075451299,-370.76,0.00029863,4]
[329060484,1718075451310,-515.47681899,0.00029863,4]
[329060485,1718075451321,-500.0,0.00029863,2]
[329060486,1718075451333,-500.0,0.00029863,4]
[329060487,1718075451345,-500.0,0.00029863,4]
[329060488,1718075451356,-500.0,0.00029863,4]
[329060489,1718075451367,-500.0,0.00029863,4]
[329060490,1718075451379,-500.0,0.00029863,4]
[329060491,1718075451391,-500.0,0.00029863,4]
[329060492,1718075451405,-500.0,0.00029863,4]
[329060493,1718075451415,-543.09914357,0.00029863,4]
[329060494,1718075451427,-500.0,0.00029863,4]
[329060495,1718075451443,-500.0,0.00029863,4]
[329060496,1718075451454,-500.0,0.00029863,4]
[329060497,1718075451465,-500.0,0.00029863,4]
[329060498,1718075451478,-500.0,0.00029863,4]
[329060499,1718075451489,-500.0,0.00029863,4]
[329060500,1718075451505,-500.0,0.00029863,4]
[329060501,1718075451516,-500.0,0.00029863,4]
[329060502,1718075451528,-500.0,0.00029863,4]
[329060503,1718075451539,-518.7015619,0.00029863,4]
[329060504,1718075451550,-500.0,0.00029863,2]
[329060505,1718075451562,-500.0,0.00029863,2]
[329060506,1718075451573,-508.5528384,0.00029863,4]
[329060507,1718075451585,-500.0,0.00029863,4]
[329060508,1718075451597,-500.0,0.00029863,4]
[329060509,1718075451609,-286.98855579,0.00029863,4]
[329060510,1718075451621,-500.0,0.00029863,4]
[329060511,1718075451632,-500.0,0.00029863,4]
[329060512,1718075451643,-500.0,0.00029863,4]
[329060513,1718075451654,-500.0,0.00029863,4]
[329060514,1718075451666,-538.86,0.00029863,4]
[329060515,1718075451677,-500.0,0.00029863,4]
[329060516,1718075451688,-500.0,0.00029863,4]
[329060517,1718075451700,-500.0,0.00029863,4]
[329060518,1718075451711,-500.0,0.00029863,4]
[329060519,1718075451722,-500.0,0.00029863,4]
[329060520,1718075451733,-500.0,0.00029863,4]
[329060521,1718075451745,-500.0,0.00029863,4]
[329060522,1718075451756,-500.0,0.00029863,4]
[329060523,1718075451767,-500.0,0.00029863,4]
[329060524,1718075451778,-500.0,0.00029863,4]
[329060525,1718075451790,-500.0,0.00029863,4]
[329060526,1718075451801,-500.0,0.00029863,4]
[329060527,1718075451813,-443.95616325,0.00029863,4]
[329060528,1718075451824,-500.0,0.00029863,4]
[329060529,1718075451835,-500.0,0.00029863,4]
[329060530,1718075451847,-500.0,0.00029863,4]
[329060531,1718075451858,-500.0,0.00029863,4]
[329060532,1718075451869,-500.0,0.00029863,4]
[329060533,1718075451879,-500.0,0.00029863,4]
[329060534,1718075451890,-500.0,0.00029863,4]
[329060535,1718075451901,-500.0,0.00029863,4]
[329060536,1718075451912,-500.0,0.00029863,4]
[329060537,1718075451922,-500.0,0.00029863,4]
[329060538,1718075451933,-500.0,0.00029863,4]
[329060539,1718075451943,-500.0,0.00029863,4]
[329060540,1718075451953,-496.85544106,0.00029863,4]
[329060541,1718075451964,-500.0,0.00029863,4]
[329060542,1718075451974,-500.0,0.00029863,4]
[329060543,1718075451985,-500.0,0.00029863,4]
[329060544,1718075451996,-500.0,0.00029863,4]
[329060545,1718075452008,-500.0,0.00029863,4]
[329060546,1718075452020,-500.0,0.00029863,4]
[329060547,1718075452031,-500.0,0.00029863,4]
[329060548,1718075452043,-500.0,0.00029863,4]
[329060549,1718075452054,-500.0,0.00029863,4]
[329060550,1718075452065,-500.0,0.00029863,4]
[329060551,1718075452077,-500.0,0.00029863,4]
[329060552,1718075452088,-500.0,0.00029863,4]
[329060553,1718075452102,-500.0,0.00029863,4]
[329060554,1718075452116,-500.0,0.00029863,4]
[329060555,1718075452126,-500.0,0.00029863,4]
[329060556,1718075452139,-500.0,0.00029863,4]
[329060557,1718075452151,-500.0,0.00029863,4]
[329060558,1718075452162,-500.0,0.00029863,4]
[329060559,1718075452173,-500.0,0.00029863,4]
[329060560,1718075452186,-500.0,0.00029863,4]
[329060561,1718075452197,-500.0,0.00029863,4]
[329060562,1718075452208,-500.0,0.00029863,4]
[329060563,1718075452219,-180.04,0.00029863,4]
[329060564,1718075452230,-500.0,0.00029863,4]
[329060565,1718075452242,-508.62,0.00029863,4]
[329060566,1718075452253,-168.696696,0.00029863,4]
[329060567,1718075452264,-500.0,0.00029863,4]
[329060568,1718075452275,-500.0,0.00029863,4]
[329060569,1718075452286,-379.85385198,0.00029863,4]
[329060570,1718075452296,-500.0,0.00029863,4]
[329060571,1718075452307,-500.0,0.00029863,4]
[329060572,1718075452317,-500.0,0.00029863,4]
[329060573,1718075452328,-500.0,0.00029863,4]
[329060574,1718075452339,-500.0,0.00029863,4]
[329060575,1718075452352,-500.0,0.00029863,4]
[329060576,1718075452364,-500.0,0.00029863,4]
[329060577,1718075452375,-500.0,0.00029863,4]
[329060578,1718075452385,-500.0,0.00029863,4]
[329060579,1718075452400,-500.0,0.00029863,4]
[329060580,1718075452412,-500.0,0.00029863,4]
[329060581,1718075452424,-500.0,0.00029863,4]
[329060582,1718075452439,-500.0,0.00029863,4]
[329060583,1718075452451,-500.0,0.00029863,4]
[329060584,1718075452463,-500.0,0.00029863,4]
[329060585,1718075452476,-500.0,0.00029863,4]
[329060586,1718075452489,-500.0,0.00029863,4]
[329060587,1718075452500,-500.0,0.00029863,4]
[329060588,1718075452511,-500.0,0.00029863,4]
[329060589,1718075452522,-500.0,0.00029863,4]
[329060590,1718075452533,-500.0,0.00029863,4]
[329060591,1718075452544,-500.0,0.00029863,4]
[329060592,1718075452554,-500.0,0.00029863,4]
[329060593,1718075452565,-500.0,0.00029863,4]
[329060594,1718075452576,-500.0,0.00029863,4]
[329060595,1718075452587,-500.0,0.00029863,4]
[329060596,1718075452599,-500.0,0.00029863,4]
[329060597,1718075452610,-500.0,0.00029863,4]
[329060598,1718075452621,-512.19058082,0.00029863,4]
[329060599,1718075452632,-500.0,0.00029863,4]
[329060600,1718075452642,-500.0,0.00029863,4]
[329060601,1718075452653,-500.0,0.00029863,4]
[329060602,1718075452664,-500.0,0.00029863,4]
[329060603,1718075452675,-500.0,0.00029863,4]
[329060604,1718075452686,-500.0,0.00029863,4]
[329060605,1718075452697,-500.0,0.00029863,4]
[329060606,1718075452707,-500.0,0.00029863,4]
[329060607,1718075452718,-500.0,0.00029863,4]
[329060608,1718075452729,-500.0,0.00029863,4]
[329060609,1718075452740,-500.0,0.00029863,4]
[329060610,1718075452750,-500.0,0.00029863,4]
[329060611,1718075452761,-500.0,0.00029863,4]
[329060612,1718075452772,-500.0,0.00029863,4]
[329060613,1718075452783,-500.0,0.00029863,4]
[329060614,1718075452793,-500.0,0.00029863,4]
[329060615,1718075452803,-500.0,0.00029863,4]
[329060616,1718075452815,-500.0,0.00029863,4]
[329060617,1718075452826,-500.0,0.00029863,4]
[329060618,1718075452837,-500.0,0.00029863,4]
[329060619,1718075452849,-507.07414231,0.00029863,4]
[329060620,1718075452861,-500.0,0.00029863,4]
[329060621,1718075452872,-500.0,0.00029863,4]
[329060622,1718075452883,-500.0,0.00029863,4]
[329060623,1718075452893,-518.78442317,0.00029863,4]
[329060624,1718075452904,-500.0,0.00029863,4]
[329060625,1718075452915,-293.32,0.00029863,4]
[329060626,1718075452925,-500.0,0.00029863,4]
[329060627,1718075452936,-500.0,0.00029863,4]
[329060628,1718075452946,-500.0,0.00029863,4]
[329060629,1718075452960,-165.41211935,0.00029863,4]
[329060630,1718075452976,-500.0,0.00029863,4]
[329060631,1718075452987,-500.0,0.00029863,4]
[329060632,1718075452998,-151.0,0.00029863,7]
[329060633,1718075453009,-500.0,0.00029863,4]
[329060634,1718075453020,-500.0,0.00029863,4]
[329060635,1718075453034,-500.0,0.00029863,4]
[329060636,1718075453044,-500.0,0.00029863,4]
[329060637,1718075453055,-500.0,0.00029863,4]
[329060638,1718075453066,-458.75954314,0.00029863,4]
[329060639,1718075453077,-500.0,0.00029863,4]
[329060640,1718075453089,-500.0,0.00029863,4]
[329060641,1718075453099,-514.3945971,0.00029863,4]
[329060642,1718075453110,-500.0,0.00029863,4]
[329060643,1718075453120,-500.0,0.00029863,4]
[329060644,1718075453131,-500.0,0.00029863,4]
[329060645,1718075453141,-485.0,0.00029863,4]
[329060646,1718075453152,-500.0,0.00029863,4]
[329060647,1718075453163,-500.0,0.00029863,4]
[329060648,1718075453174,-500.0,0.00029863,4]
[329060649,1718075453185,-500.0,0.00029863,4]
[329060650,1718075453206,-500.0,0.00029863,4]
[329060651,1718075453218,-500.0,0.00029863,4]
[329060652,1718075453229,-500.0,0.00029863,4]
[329060653,1718075453241,-500.0,0.00029863,4]
[329060654,1718075453253,-500.0,0.00029863,4]
[329060655,1718075453264,-218.81,0.00029863,4]
[329060656,1718075453275,-500.0,0.00029863,4]
[329060657,1718075453286,-500.0,0.00029863,4]
[329060658,1718075453297,-500.0,0.00029863,4]
[329060659,1718075453308,-661.08,0.00029863,4]
[329060660,1718075453318,-229.22000457,0.00029863,4]
[329060661,1718075453483,-270.77999543,0.00029863,4]
[329060662,1718075453497,-500.0,0.00029863,4]
[329060663,1718075453511,-500.0,0.00029863,4]
[329060664,1718075453532,-500.0,0.00029863,4]
[329060665,1718075453549,-500.0,0.00029863,4]
[329060666,1718075453565,-661.08,0.00029863,4]
[329060667,1718075453580,-500.0,0.00029863,4]
[329060668,1718075453591,-500.0,0.00029863,4]
[329060669,1718075453608,-500.0,0.00029863,4]
[329060670,1718075453621,-500.0,0.00029863,4]
[329060671,1718075453633,-661.08,0.00029863,4]
[329060672,1718075453651,-500.0,0.00029863,4]
[329060673,1718075453667,-500.0,0.00029863,4]
[329060674,1718075453938,-661.08,0.00029863,4]
[329060675,1718075453956,-500.0,0.00029863,4]
[329060676,1718075453969,-500.0,0.00029863,4]
[329060677,1718075453981,-500.0,0.00029863,4]
[329060678,1718075453992,-661.08,0.00029863,4]
[329060679,1718075454002,-500.0,0.00029863,4]
[329060680,1718075454024,-77.55436805,0.00029863,4]
[329060681,1718075454091,-422.44563195,0.00029863,4]
[329060682,1718075454108,-240.68603289,0.00029863,4]
[329060683,1718075454122,-259.31396711,0.00029863,4]
[329060684,1718075454139,-661.08,0.00029863,4]
[329060685,1718075454153,-500.0,0.00029863,4]
[329060686,1718075454164,-500.0,0.00029863,4]
[329060687,1718075454174,-500.0,0.00029863,4]
[329060688,1718075454184,-650.41103289,0.00029863,4]
[329060689,1718075454203,-10.66896711,0.00029863,4]
[329060690,1718075454215,-500.0,0.00029863,4]
[329060691,1718075454225,-500.0,0.00029863,4]
[329060692,1718075454236,-500.0,0.00029863,4]
[329060693,1718075454246,-424.86,0.00029863,4]
[329060694,1718075454257,-661.08,0.00029863,4]
[329060695,1718075454268,-500.0,0.00029863,4]
[329060696,1718075454279,-500.0,0.00029863,4]
[329060697,1718075454290,-240.12648194,0.00029863,4]
[329060698,1718075454307,-259.87351806,0.00029863,4]
[329060699,1718075454318,-500.0,0.00029863,4]
[329060700,1718075454330,-623.98310354,0.00029863,4]
[329060701,1718075454344,-37.09689646,0.00029863,4]
[329060702,1718075454356,-593.05,0.00029863,4]
[329060703,1718075454368,-500.0,0.00029863,4]
[329060704,1718075454379,-500.0,0.00029863,4]
[329060705,1718075454393,-500.0,0.00029863,4]
[329060706,1718075454406,-500.0,0.00029863,4]
[329060707,1718075454417,-500.0,0.00029863,4]
[329060708,1718075454434,-500.0,0.00029863,4]
[329060709,1718075454445,-500.0,0.00029863,4]
[329060710,1718075454455,-661.08,0.00029863,4]
[329060711,1718075454465,-500.0,0.00029863,4]
[329060712,1718075454476,-556.83904221,0.00029863,4]
[329060713,1718075454486,-38.23393649,0.00029863,4]
[329060714,1718075454767,-461.76606351,0.00029863,4]
[329060715,1718075454778,-589.61724042,0.00029863,4]
[329060716,1718075454791,-71.46275958,0.00029863,4]
[329060717,1718075454807,-534.86,0.00029863,4]
[329060718,1718075454817,-500.0,0.00029863,4]
[329060719,1718075454828,-661.08,0.00029863,4]
[329060720,1718075454838,-500.0,0.00029863,4]
[329060721,1718075454848,-500.0,0.00029863,4]
[329060722,1718075454858,-661.08,0.00029863,4]
[329060723,1718075454869,-500.0,0.00029863,4]
[329060724,1718075454878,-500.0,0.00029863,4]
[329060725,1718075454889,-234.47524042,0.00029863,4]
[329060726,1718075454905,-426.60475958,0.00029863,4]
[329060727,1718075454916,-317.26291418,0.00029863,4]
[329060728,1718075454931,-182.73708582,0.00029863,4]
[329060729,1718075454942,-521.55988775,0.00029863,4]
[329060730,1718075454952,-73.57331668,0.00029863,4]
[329060731,1718075454966,-587.50668332,0.00029863,4]
[329060732,1718075454976,-102.49331668,0.00029863,4]
[329060733,1718075455140,-180.72100883,0.00016846,2]
[329060734,1718075455151,-226.7178388,0.00029862,5]
[329060735,1718075455161,-423.0,0.00029863,5]
[329060736,1718075455172,-397.50668332,0.00029863,4]
[329060737,1718075455182,-196.78330334,0.00029863,4]
[329060738,1718075455195,-464.29669666,0.00029863,4]
[329060739,1718075455205,-500.0,0.00029863,4]
[329060740,1718075455215,-500.0,0.00029863,4]
[329060741,1718075455225,-500.0,0.00029863,4]
[329060742,1718075455235,-500.0,0.00029863,4]
[329060743,1718075455248,-500.0,0.00029863,4]
[329060744,1718075455258,-500.0,0.00029863,4]
[329060745,1718075455269,-500.0,0.00029863,4]
[329060746,1718075455279,-500.0,0.00029863,4]
[329060747,1718075455289,-233.59292172,0.00029863,4]
[329060748,1718075455306,-266.40707828,0.00029863,4]
[329060749,1718075455316,-15.50126563,0.00029863,4]
[329060750,1718075455329,-484.49873437,0.00029863,4]
[329060751,1718075455339,-500.0,0.00029863,4]
[329060752,1718075455350,-500.0,0.00029863,4]
[329060753,1718075455360,-500.0,0.00029863,4]
[329060754,1718075455370,-500.0,0.00029863,4]
[329060755,1718075455381,-500.0,0.00029863,4]
[329060756,1718075455392,-500.0,0.00029863,4]
[329060757,1718075455407,-500.0,0.00029863,4]
[329060758,1718075455418,-500.0,0.00029863,4]
[329060759,1718075455430,-500.0,0.00029863,4]
[329060760,1718075455444,-486.94396861,0.00029863,4]
[329060761,1718075455455,-500.0,0.00029863,4]
[329060762,1718075455466,-500.0,0.00029863,4]
[329060763,1718075455478,-500.0,0.00029863,4]
[329060764,1718075455489,-500.0,0.00029863,4]
[329060765,1718075455500,-327.48116876,0.00029863,4]
[329060766,1718075455520,-172.51883124,0.00029863,4]
[329060767,1718075455531,-283.43,0.00029863,4]
[329060768,1718075455541,-500.0,0.00029863,4]
[329060769,1718075455552,-47.01192578,0.00029863,4]
[329060770,1718075455566,-300.0,0.00029863,4]
[329060771,1718075455580,-172.14236737,0.00029863,4]
[329060772,1718075455591,-411.37081231,0.00029863,4]
[329060773,1718075455606,-88.62918769,0.00029863,4]
[329060774,1718075455618,-500.0,0.00029863,4]
[329060775,1718075455629,-500.0,0.00029863,4]
[329060776,1718075455640,-500.0,0.00029863,4]
[329060777,1718075455651,-500.0,0.00029863,4]
[329060778,1718075455661,-500.0,0.00029863,4]
[329060779,1718075455672,-619.51,0.00029863,4]
[329060780,1718075455683,-250.54833951,0.00029863,4]
[329060781,1718075455694,-500.0,0.00029863,4]
[329060782,1718075455705,-500.0,0.00029863,2]
[329060783,1718075455716,-500.0,0.00029863,4]
[329060784,1718075455727,-500.0,0.00029863,4]
[329060785,1718075455738,-500.0,0.00029863,2]
[329060786,1718075455749,-500.0,0.00029863,4]
[329060787,1718075455759,-151.0,0.00029863,7]
[329060788,1718075455770,-500.0,0.00029863,4]
[329060789,1718075455781,-519.11240638,0.00029863,4]
[329060790,1718075455791,-500.0,0.00029863,4]
[329060791,1718075455802,-500.0,0.00029863,2]
[329060792,1718075455815,-500.0,0.00029863,4]
[329060793,1718075455827,-500.0,0.00029863,4]
[329060794,1718075455839,-500.0,0.00029863,4]
[329060795,1718075455851,-500.0,0.00029863,4]
[329060796,1718075455862,-500.0,0.00029863,2]
[329060797,1718075455874,-514.56235897,0.00029863,4]
[329060798,1718075455886,-525.4,0.00029863,4]
[329060799,1718075455897,-353.551951,0.00029863,4]
[329060800,1718075455909,-500.0,0.00029863,2]
[329060801,1718075455920,-526.43,0.00029863,4]
[329060802,1718075455933,-500.0,0.00029863,4]
[329060803,1718075455944,-500.0,0.00029863,2]
[329060804,1718075455956,-500.0,0.00029863,4]
[329060805,1718075455969,-500.0,0.00029863,4]
[329060806,1718075455980,-500.0,0.00029863,4]
[329060807,1718075455991,-500.0,0.00029863,2]
[329060808,1718075456002,-500.0,0.00029863,4]
[329060809,1718075456012,-500.0,0.00029863,4]
[329060810,1718075456024,-500.0,0.00029863,2]
[329060811,1718075456034,-500.0,0.00029863,4]
[329060812,1718075456045,-500.0,0.00029863,4]
[329060813,1718075456057,-500.0,0.00029863,4]
[329060814,1718075456069,-500.0,0.00029863,2]
[329060815,1718075456080,-500.0,0.00029863,4]
[329060816,1718075456092,-500.0,0.00029863,4]
[329060817,1718075456103,-500.0,0.00029863,4]
[329060818,1718075456114,-500.0,0.00029863,2]
[329060819,1718075456124,-500.0,0.00029863,4]
[329060820,1718075456135,-236.98057256,0.00029863,4]
[329060821,1718075456148,-500.0,0.00029863,4]
[329060822,1718075456160,-500.0,0.00029863,2]
[329060823,1718075456171,-645.74,0.00029863,4]
[329060824,1718075456182,-500.0,0.00029863,4]
[329060825,1718075456193,-500.0,0.00029863,4]
[329060826,1718075456204,-500.0,0.00029863,2]
[329060827,1718075456214,-500.0,0.00029863,4]
[329060828,1718075456225,-500.0,0.00029863,2]
[329060829,1718075456237,-500.0,0.00029863,4]
[329060830,1718075456247,-500.0,0.00029863,2]
[329060831,1718075456259,-500.0,0.00029863,4]
[329060832,1718075456271,-500.0,0.00029863,2]
[329060833,1718075456282,-500.0,0.00029863,4]
[329060834,1718075456293,-506.76215394,0.00029863,4]
[329060835,1718075456305,-500.0,0.00029863,2]
[329060836,1718075456317,-493.47564279,0.00029863,4]
[329060837,1718075456329,-500.0,0.00029863,2]
[329060838,1718075456340,-500.0,0.00029863,4]
[329060839,1718075456352,-500.0,0.00029863,4]
[329060840,1718075456363,-500.0,0.00029863,2]
[329060841,1718075456374,-500.0,0.00029863,4]
[329060842,1718075456386,-500.0,0.00029863,4]
[329060843,1718075456401,-500.0,0.00029863,2]
[329060844,1718075456412,-500.0,0.00029863,4]
[329060845,1718075456424,-500.0,0.00029863,4]
[329060846,1718075456441,-500.0,0.00029863,4]
[329060847,1718075456451,-500.0,0.00029863,2]
[329060848,1718075456462,-500.0,0.00029863,4]
[329060849,1718075456472,-500.0,0.00029863,4]
[329060850,1718075456482,-500.0,0.00029863,4]
[329060851,1718075456492,-500.0,0.00029863,4]
[329060852,1718075456502,-500.0,0.00029863,4]
[329060853,1718075456516,-500.0,0.00029863,2]
[329060854,1718075456528,-500.0,0.00029863,4]
[329060855,1718075456540,-500.0,0.00029863,4]
[329060856,1718075456551,-500.0,0.00029863,4]
[329060857,1718075456564,-327.68344286,0.00029863,4]
[329060859,1718075598444,203.81,0.0002712,120]
[329060865,1718076441589,-365.49406058,0.00016003,2]
[329060866,1718076441614,-364.20577069,0.00016003,2]
[329060867,1718076441640,-478.64250498,0.00016004,2]
[329060868,1718076441665,-214.02483678,0.00016846,2]
[329060869,1718076441691,-150.0,0.00019451,2]
[329060870,1718076441717,-499.99,0.00019726,2]
[329060871,1718076441745,-226.7178388,0.000201,2]
[329060872,1718076441770,-379.24670205,0.000211,2]
[329060873,1718076453108,-3231.05519795,0.000211,2]
[329060874,1718076453135,-379.28183176,0.000212,3]
[329060876,1718076551486,-525.50363988,0.00017259,2]
[329060877,1718076551510,-300.0,0.00019725,2]
[329060878,1718076551536,-3189.96057719,0.00020776,2]
[329060879,1718076561111,-3949.50854896,0.00020776,2]
[329060882,1718076636735,-465.86578839,0.00020775,2]
[329060884,1718076636748,-226.7178388,0.00020775,2]
[329060887,1718076636758,-5656.72806264,0.00020776,2]
[329060891,1718076636782,-5314.0001,0.00020776,2]
[329060893,1718076636801,-13647.93571121,0.00020776,2]
[329060895,1718076636818,-31758.133,0.00020776,2]
[329060896,1718076636834,-31758.133,0.00020776,2]
[329060897,1718076636846,-15565.88461069,0.00020776,2]
[329060898,1718076636863,-603.38328281,0.00020776,2]
[329060899,1718076636884,-5761.97270198,0.00020776,2]
[329060900,1718076636925,-1656.0568844,0.00020776,2]
[329060901,1718076636957,-2628.90713172,0.00020776,2]
[329060902,1718076636971,-289.3455407,0.00020776,2]
[329060903,1718076636985,-5252.5828477,0.00020776,2]
[329060904,1718076636996,-30026.14027937,0.00020776,2]
[329060905,1718076637012,-278.60878409,0.00020776,2]
[329060906,1718076637029,-1115.8023317,0.00020776,2]
[329060907,1718076637043,-337.58160484,0.00020776,2]
[329060908,1718076637057,-25.66092056,0.00020776,10]
[329060909,1718076637081,-129.33907944,0.00020776,10]
[329060910,1718076637093,-817.26918962,0.00020988,2]
[329060911,1718076637106,-2333.50701761,0.00020988,2]
[329060912,1718076637118,-2207.40403079,0.00020988,2]
[329060913,1718076637131,-1325.14524,0.00020988,2]
[329060914,1718076637145,-3499.02376926,0.00020988,2]
[329060915,1718076637158,-280.85203042,0.00020988,2]
[329060916,1718076637170,-10424.7977223,0.00020988,2]
[329060917,1718076637181,-1900.95775758,0.00020988,2]
[329060918,1718076637200,-378.73,0.00020988,2]
[329060919,1718076637216,-1185.07649312,0.00020988,2]
[329060921,1718076640988,-17423.2357493,0.00020988,2]
[329060924,1718076641001,-20888.0,0.00020988,2]
[329060926,1718076641014,-20888.0,0.00020988,2]
[329060927,1718076641026,-9224.59146631,0.00020988,2]
[329060929,1718076641039,-4207.32988912,0.00020988,2]
[329060931,1718076641054,-2185.41788687,0.00020988,2]
[329060948,1718076646452,-1088.3299892,0.00020988,2]
[329060952,1718076646467,-461.81999999,0.00020988,2]
[329060954,1718076646480,-3720.51076851,0.00020988,2]
[329060956,1718076646491,-308.71816824,0.000212,3]
[329060958,1718076646507,-150.99,0.00021484,2]
[329060960,1718076646520,-499.99,0.00021484,2]
[329060962,1718076646531,-155.46,0.00021484,2]
[329060965,1718076646548,-1000.0,0.00022069,2]
[329060967,1718076646559,-473.4,0.00023221,2]
[329060968,1718076646570,-154.86,0.00024384,2]
[329060969,1718076646582,-152.09,0.00024384,2]
[329060970,1718076646593,-3112.88189727,0.00024799,2]
[329060971,1718076646604,-3112.88189727,0.00024799,2]
[329060972,1718076646615,-3112.88189727,0.00024799,2]
[329060973,1718076646625,-3112.88189727,0.00024799,2]
[329060974,1718076646641,-3112.88189727,0.00024893,2]
[329060975,1718076646652,-6800.13647761,0.00024999,2]